bitfinex/quotes_BTCUSD_20250204
["timestamp","ask_amount","ask_price","bid_price","bid_amount"]
[1738667188782,0.0001069,99157.0,99156.0,0.27666106]
[1738667190109,0.00024782,99157.0,99156.0,0.27666106]
[1738667190503,0.00024782,99157.0,99156.0,0.28805897]
[1738667191411,0.00024782,99157.0,99156.0,0.29105897]
[1738667192199,0.00024782,99157.0,99156.0,0.30362705]
[1738667192598,0.00024782,99157.0,99156.0,0.30662705]
[1738667192798,0.00024782,99157.0,99156.0,0.29105897]
[1738667193013,0.00024782,99157.0,99156.0,0.30662705]
[1738667193466,0.00024782,99157.0,99156.0,0.45662705]
[1738667193642,8.2e-07,99157.0,99156.0,0.45662705]
[1738667194003,8.2e-07,99157.0,99156.0,0.48814372]
[1738667194942,8.2e-07,99157.0,99156.0,0.48514372]
[1738667195166,8.2e-07,99157.0,99156.0,0.48814372]
[1738667195365,2e-08,99163.0,99162.0,0.301267]
[1738667195566,2e-08,99163.0,99162.0,0.52065616]
[1738667195747,2e-08,99163.0,99162.0,0.55217283]
[1738667198447,2e-08,99163.0,99162.0,0.55517283]
[1738667199513,6.723e-05,99200.0,99199.0,0.151211]
[1738667199707,0.00053716,99200.0,99199.0,0.151211]
[1738667200339,0.00053716,99200.0,99199.0,0.27780575]
[1738667200555,1.6e-07,99200.0,99199.0,0.42659606]
[1738667200764,1.6e-07,99200.0,99199.0,0.46877673]
[1738667201182,1.6e-07,99200.0,99199.0,0.42659606]
[1738667201592,1.6e-07,99200.0,99199.0,0.42959606]
[1738667201804,1.6e-07,99200.0,99199.0,0.42659606]
[1738667202240,1.6e-07,99200.0,99199.0,0.42959606]
[1738667202838,1.6e-07,99200.0,99199.0,0.44082011]
[1738667203601,1.6e-07,99200.0,99199.0,0.01422405]
[1738667203847,1.6e-07,99200.0,99199.0,0.003]
[1738667204855,1.6e-07,99200.0,99194.0,0.201624]
[1738667205080,1.6e-07,99200.0,99199.0,0.003]
[1738667205275,1.6e-07,99200.0,99199.0,0.154211]
[1738667205477,1.6e-07,99200.0,99199.0,0.151211]
[1738667205676,1.6e-07,99200.0,99199.0,0.154211]
[1738667206512,1.6e-07,99200.0,99199.0,0.151211]
[1738667207990,1.6e-07,99200.0,99199.0,0.003]
[1738667208631,1.6e-07,99200.0,99199.0,0.006]
[1738667208828,0.15120916,99200.0,99199.0,0.006]
[1738667209027,1.6e-07,99200.0,99199.0,0.006]
[1738667209231,0.0049261,99200.0,99199.0,0.006]
[1738667209553,0.0049261,99200.0,99174.0,0.173]
[1738667209736,0.0049261,99200.0,99199.0,0.00022428]
[1738667209933,0.1561351,99200.0,99199.0,0.00322428]
[1738667210638,0.1562419,99200.0,99199.0,0.00322428]
[1738667211241,0.25862696,99200.0,99199.0,0.00322428]
[1738667211454,0.25862696,99200.0,99199.0,0.00022428]
[1738667211659,0.25862696,99200.0,99199.0,0.00322428]
[1738667212273,0.45522696,99200.0,99199.0,0.00322428]
[1738667212484,0.46176766,99200.0,99199.0,0.00322428]
[1738667212896,0.4726606,99200.0,99199.0,0.00322428]
[1738667213104,0.5431606,99200.0,99199.0,0.00022428]
[1738667213315,0.58515532,99200.0,99199.0,0.00022428]
[1738667213523,0.60383534,99200.0,99199.0,0.00322428]
[1738667213759,0.60383534,99200.0,99157.0,0.151273]
[1738667213760,0.01,99196.0,99157.0,0.151273]
[1738667213959,0.20497275,99180.0,99138.0,0.201737]
[1738667214164,0.10238506,99179.0,99141.0,0.30411706]
[1738667214376,0.151267,99163.0,99141.0,0.30411506]
[1738667214585,0.201657,99178.0,99141.0,0.30411506]
[1738667214790,0.151267,99163.0,99154.0,0.151279]
[1738667215011,0.151264,99165.0,99141.0,0.10238506]
[1738667215218,0.151266,99163.0,99153.0,0.151279]
[1738667215431,0.151263,99165.0,99153.0,0.201707]
[1738667215648,0.20497275,99170.0,99153.0,0.00046977]
[1738667215857,0.151275,99157.0,99153.0,0.00046977]
[1738667216063,0.20497275,99170.0,99153.0,0.00046977]
[1738667216306,0.201697,99159.0,99153.0,0.00046977]
[1738667216509,0.23348506,99169.0,99153.0,0.00346977]
[1738667216710,0.151279,99155.0,99153.0,0.00346977]
[1738667216914,0.151279,99155.0,99153.0,0.00046977]
[1738667217525,0.145276,99155.0,99153.0,0.00046977]
[1738667217730,0.151276,99157.0,99153.0,0.00046977]
[1738667218141,0.01868002,99154.0,99153.0,0.00046977]
[1738667218340,0.01868002,99154.0,99153.0,0.00246977]
[1738667219190,0.01868002,99154.0,99153.0,0.00046977]
[1738667219393,0.01868002,99154.0,99153.0,0.00246977]
[1738667219953,0.151272,99160.0,99153.0,0.00246977]
[1738667220159,0.151269,99161.0,99153.0,0.00246977]
[1738667220364,0.23348506,99169.0,99153.0,0.00246977]
[1738667220681,0.151279,99154.0,99153.0,0.00246977]
[1738667220891,0.23348506,99169.0,99153.0,0.00246977]
[1738667220892,0.151278,99155.0,99153.0,0.00246977]
[1738667221473,0.151278,99155.0,99153.0,0.00046977]
[1738667221674,0.151278,99155.0,99153.0,0.00246977]
[1738667222058,0.151278,99155.0,99153.0,0.00046977]
[1738667222487,0.201701,99157.0,99153.0,0.00246977]
[1738667222712,0.023,99168.0,99153.0,0.00246977]
[1738667222884,0.174279,99154.0,99153.0,0.00246977]
[1738667223081,0.27666406,99154.0,99153.0,0.00246977]
[1738667223422,0.27666406,99154.0,99153.0,0.00269405]
[1738667224626,0.27766406,99154.0,99153.0,0.00069405]
[1738667224837,0.29639975,99154.0,99153.0,0.00069405]
[1738667225040,0.29639975,99154.0,99153.0,0.00269405]
[1738667225268,0.29639975,99154.0,99153.0,0.00069405]
[1738667225769,0.29839975,99154.0,99153.0,0.00069405]
[1738667226322,0.54802749,99154.0,99153.0,0.00069405]
[1738667226600,0.67440764,99154.0,99153.0,0.00069405]
[1738667226803,2.17440764,99154.0,99153.0,0.00069405]
[1738667227599,2.17340764,99154.0,99153.0,0.00069405]
[1738667227808,2.17140764,99154.0,99153.0,0.00069405]
[1738667228010,2.27690236,99154.0,99153.0,5e-08]
[1738667228256,2.27690236,99154.0,99119.0,0.00022449]
[1738667228257,0.151331,99120.0,99119.0,0.00022449]
[1738667228495,0.25371606,99120.0,99119.0,0.00036541]
[1738667229114,0.27671606,99120.0,99119.0,0.00036541]
[1738667229363,0.27671606,99120.0,99119.0,0.00136541]
[1738667230325,0.29545175,99120.0,99119.0,0.00136541]
[1738667231313,0.01873569,99120.0,99119.0,0.00036541]
[1738667231563,0.01873569,99120.0,99119.0,0.00136541]
[1738667233237,0.151321,99127.0,99119.0,0.00136541]
[1738667233494,0.01873569,99128.0,99119.0,0.00136541]
[1738667233752,0.01873569,99128.0,99127.0,0.151321]
[1738667234779,0.023,99157.0,99123.0,0.201768]
[1738667235032,0.10238506,99156.0,99126.0,0.807052]
[1738667235285,0.01873569,99158.0,99156.0,0.151276]
[1738667235536,0.01873569,99158.0,99156.0,0.25366106]
[1738667236476,0.11935119,99159.0,99156.0,0.25366106]
[1738667236477,0.08944655,99159.0,99158.0,0.151273]
[1738667236765,0.08949349,99159.0,99158.0,0.151273]
[1738667237907,4.694e-05,99159.0,99158.0,0.152273]
[1738667238388,4.694e-05,99159.0,99158.0,0.154273]
[1738667238604,4.694e-05,99159.0,99158.0,0.003]
[1738667238951,4.694e-05,99159.0,99158.0,0.002]
[1738667239387,4.694e-05,99159.0,99158.0,0.003]
[1738667239811,4.694e-05,99159.0,99158.0,0.002]
[1738667240176,4.694e-05,99159.0,99158.0,0.003]
[1738667240581,4.694e-05,99159.0,99158.0,0.001]
[1738667240828,4.694e-05,99159.0,99158.0,0.002]
[1738667241326,4.694e-05,99159.0,99150.0,0.151284]
[1738667241526,4.694e-05,99159.0,99150.0,0.151285]
[1738667241901,4.694e-05,99159.0,99158.0,0.002]
[1738667242106,0.15131894,99159.0,99158.0,0.003]
[1738667242515,0.15790179,99159.0,99126.0,0.201762]
[1738667242729,0.10238506,99158.0,99120.0,0.20497275]
[1738667242936,0.151284,99151.0,99150.0,0.001]
[1738667243359,0.15129,99147.0,99138.0,0.151303]
[1738667243574,0.151276,99156.0,99136.0,0.151306]
[1738667243795,0.15129,99148.0,99138.0,0.151303]
[1738667244023,0.10238506,99155.0,99129.0,0.201756]
[1738667244239,0.151303,99139.0,99128.0,0.201759]
[1738667244448,0.1513,99141.0,99127.0,0.00122428]
[1738667244666,0.15,99151.0,99127.0,0.00122428]
[1738667244882,0.10238506,99150.0,99138.0,0.151303]
[1738667245093,0.151295,99144.0,99138.0,0.002]
[1738667245307,0.04880803,99154.0,99138.0,0.002]
[1738667245536,4.694e-05,99159.0,99150.0,0.001]
[1738667245963,4.694e-05,99159.0,99152.0,0.151282]
[1738667246170,4.694e-05,99159.0,99153.0,0.151279]
[1738667246375,4.694e-05,99159.0,99139.0,0.353038]
[1738667246588,4.694e-05,99159.0,99139.0,0.151302]
[1738667246820,0.01877773,99158.0,99150.0,0.151285]
[1738667247031,0.01817773,99158.0,99152.0,0.151282]
[1738667247812,4.694e-05,99159.0,99152.0,0.151282]
[1738667248207,4.694e-05,99159.0,99153.0,0.15128]
[1738667248481,0.00015374,99159.0,99150.0,0.00022428]
[1738667248683,0.15142574,99159.0,99152.0,0.001]
[1738667248808,0.00015374,99159.0,99152.0,0.003]
[1738667249009,0.00015374,99159.0,99158.0,0.151273]
[1738667249850,0.00015374,99159.0,99158.0,0.15248313]
[1738667250091,0.00015374,99159.0,99158.0,0.15248304]
[1738667250774,0.00015374,99159.0,99158.0,0.26632139]
[1738667251011,0.00015374,99159.0,99158.0,0.26511135]
[1738667251250,0.00015374,99159.0,99158.0,0.26711135]
[1738667251927,0.00015374,99159.0,99158.0,0.16472629]
[1738667252985,0.00015374,99159.0,99158.0,0.34281135]
[1738667256585,7.4e-07,99159.0,99158.0,0.53931135]
[1738667256834,0.0001069,99203.0,99199.0,0.151211]
[1738667257356,0.00015377,99200.0,99199.0,0.25480549]
[1738667257586,0.00015377,99200.0,99199.0,0.25359606]
[1738667258291,0.00015377,99200.0,99199.0,0.25559606]
[1738667258529,0.00015377,99200.0,99199.0,0.25359606]
[1738667258773,0.00015377,99200.0,99199.0,0.151211]
[1738667259453,0.00015377,99200.0,99199.0,0.153211]
[1738667260330,0.00015377,99200.0,99199.0,0.25559606]
[1738667261037,0.00015377,99200.0,99199.0,0.25359606]
[1738667261274,0.00015377,99200.0,99199.0,0.25559606]
[1738667261487,0.00015377,99200.0,99199.0,0.25359606]
[1738667261907,0.00015377,99200.0,99199.0,0.25559606]
[1738667262151,0.00015377,99200.0,99199.0,0.40359606]
[1738667262585,0.00015377,99200.0,99199.0,0.40559606]
[1738667262797,0.00015377,99200.0,99199.0,0.40673627]
[1738667263008,0.00015377,99200.0,99199.0,0.40987648]
[1738667264341,0.00015377,99200.0,99199.0,0.46862972]
[1738667264574,7.7e-07,99200.0,99199.0,0.46662972]
[1738667265253,5.7e-07,99214.0,99204.0,0.01]
[1738667265471,1.5e-07,99214.0,99213.0,0.47917406]
[1738667265691,1.5e-07,99214.0,99213.0,0.53416129]
[1738667265934,0.0503346,99267.0,99265.0,0.15111]
[1738667266368,0.0503346,99267.0,99250.0,0.20462382]
[1738667266369,0.00497849,99266.0,99250.0,0.20462382]
[1738667266580,0.00014084,99266.0,99264.0,0.151111]
[1738667266793,0.00014084,99266.0,99262.0,0.151113]
[1738667267009,0.00486568,99265.0,99264.0,0.151111]
[1738667267229,0.00486568,99265.0,99264.0,0.10238506]
[1738667267446,0.00014084,99266.0,99264.0,0.151112]
[1738667268311,0.00014084,99266.0,99255.0,0.201499]
[1738667268524,0.00014084,99266.0,99257.0,0.201497]
[1738667268746,0.00014084,99266.0,99258.0,0.201495]
[1738667268955,0.00014084,99266.0,99227.0,0.201557]
[1738667268956,0.15112,99259.0,99227.0,0.201557]
[1738667269183,0.151126,99255.0,99244.0,0.151141]
[1738667269387,0.0049728,99258.0,99246.0,0.151139]
[1738667269606,0.004967,99254.0,99246.0,0.151138]
[1738667269792,0.004967,99254.0,99228.0,0.15]
[1738667269793,0.151128,99254.0,99228.0,0.15]
[1738667270061,0.151137,99248.0,99235.0,0.20154]
[1738667270278,0.151132,99251.0,99242.0,0.151144]
[1738667270503,0.00495685,99247.0,99240.0,0.151148]
[1738667270734,1.5,99254.0,99253.0,0.151128]
[1738667270989,0.151111,99265.0,99255.0,0.151124]
[1738667271210,0.004967,99254.0,99251.0,0.151131]
[1738667271438,0.004967,99254.0,99249.0,0.151134]
[1738667271651,0.151119,99260.0,99255.0,0.002]
[1738667271871,0.151117,99261.0,99252.0,0.15113]
[1738667272100,0.0484,99262.0,99238.0,0.15]
[1738667272420,0.15112,99259.0,99255.0,0.002]
[1738667272593,0.15112,99259.0,99250.0,0.151132]
[1738667272830,0.199515,99262.0,99255.0,0.002]
[1738667273041,0.0484,99262.0,99255.0,0.002]
[1738667273254,0.199515,99262.0,99255.0,0.002]
[1738667273711,0.151117,99261.0,99255.0,0.002]
[1738667273933,0.0484,99262.0,99255.0,0.002]
[1738667274148,0.0484,99262.0,99253.0,0.151128]
[1738667274358,0.151118,99261.0,99249.0,0.20462382]
[1738667274566,0.0484,99262.0,99241.0,0.15]
[1738667274771,0.00014084,99266.0,99240.0,0.20462382]
[1738667275007,0.151116,99262.0,99253.0,0.151128]
[1738667275213,0.151112,99264.0,99255.0,0.002]
[1738667275421,0.201482,99265.0,99254.0,0.151126]
[1738667275636,0.201482,99265.0,99250.0,0.20151]
[1738667275637,0.151115,99262.0,99252.0,0.151129]
[1738667275849,0.1025259,99266.0,99249.0,0.002]
[1738667276065,0.1025259,99266.0,99230.0,0.15]
[1738667276310,0.151114,99263.0,99255.0,0.151124]
[1738667276524,0.2536359,99266.0,99257.0,0.151122]
[1738667276745,0.1025259,99266.0,99230.0,0.15]
[1738667276957,0.1025259,99266.0,99241.0,0.201529]
[1738667277170,0.1025259,99266.0,99230.0,0.15]
[1738667277381,0.151115,99262.0,99255.0,0.151125]
[1738667277613,0.00014084,99266.0,99250.0,0.20462382]
[1738667277826,0.00014084,99266.0,99265.0,0.15111]
[1738667279145,0.00014084,99266.0,99265.0,0.40349506]
[1738667279570,0.00014084,99266.0,99265.0,0.25349506]
[1738667279779,0.00014084,99266.0,99265.0,0.15111]
[1738667280663,0.00014084,99266.0,99265.0,0.15311]
[1738667281114,0.00014084,99266.0,99257.0,0.201496]
[1738667281323,0.00014084,99266.0,99265.0,0.002]
[1738667282180,0.00014084,99266.0,99265.0,0.15111]
[1738667282402,0.00014084,99266.0,99265.0,0.15231874]
[1738667282654,0.00014084,99266.0,99265.0,0.15111]
[1738667283566,0.00014084,99266.0,99265.0,0.15311]
[1738667283993,0.00014084,99266.0,99265.0,0.15111]
[1738667284712,0.00014084,99266.0,99265.0,0.002]
[1738667285533,0.151114,99263.0,99248.0,0.352651]
[1738667285796,0.00014084,99266.0,99240.0,0.20462382]
[1738667285797,0.00014084,99266.0,99243.0,0.201525]
[1738667286220,0.151129,99253.0,99246.0,0.151139]
[1738667286444,0.20148,99265.0,99239.0,0.201532]
[1738667286683,0.151131,99251.0,99241.0,0.151146]
[1738667286895,0.151137,99248.0,99241.0,0.151146]
[1738667287079,0.151135,99249.0,99230.0,0.20462382]
[1738667287389,0.10238506,99264.0,99231.0,0.10238506]
[1738667287600,0.402968,99263.0,99221.0,0.151177]
[1738667287801,0.10238506,99262.0,99222.0,0.10238506]
[1738667288050,0.151145,99242.0,99241.0,0.002]
[1738667288264,0.151141,99245.0,99237.0,0.151153]
[1738667288472,0.10238506,99262.0,99230.0,0.20662382]
[1738667288674,0.201491,99260.0,99230.0,0.002]
[1738667288877,0.201495,99258.0,99234.0,0.151157]
[1738667289084,0.20161984,99266.0,99235.0,0.0012092]
[1738667289316,0.20161984,99266.0,99230.0,0.20462382]
[1738667289317,0.13498771,99265.0,99230.0,0.20462382]
[1738667289571,0.151139,99246.0,99237.0,0.151152]
[1738667289802,0.13498771,99265.0,99222.0,0.10438506]
[1738667290028,0.151138,99247.0,99222.0,0.10438506]
[1738667290259,0.151133,99250.0,99237.0,0.201536]
[1738667290504,0.201486,99262.0,99243.0,0.151143]
[1738667290733,0.201486,99262.0,99222.0,0.10238506]
[1738667290734,0.10238506,99261.0,99245.0,0.15114]
[1738667290959,0.10238506,99261.0,99223.0,0.201566]
[1738667290960,0.151134,99250.0,99243.0,0.151143]
[1738667291396,0.151134,99250.0,99240.0,0.151147]
[1738667291911,0.10238506,99261.0,99223.0,0.351565]
[1738667292175,0.24462382,99280.0,99223.0,0.351565]
[1738667292176,0.04,99280.0,99258.0,0.15112]
[1738667292415,0.201453,99279.0,99254.0,0.151126]
[1738667292669,0.201453,99279.0,99240.0,0.10238506]
[1738667292670,0.10238506,99265.0,99226.0,0.20156]
[1738667292874,0.151118,99260.0,99228.0,0.201556]
[1738667293107,0.151114,99263.0,99255.0,0.151124]
[1738667293387,0.10238506,99265.0,99258.0,0.151121]
[1738667293599,0.10238506,99265.0,99230.0,0.20462382]
[1738667293600,0.10238506,99265.0,99231.0,0.15]
[1738667293860,0.201482,99264.0,99232.0,0.10359415]
[1738667294100,0.30386706,99264.0,99232.0,0.10359415]
[1738667294338,0.10238506,99264.0,99255.0,0.151124]
[1738667294826,0.10238506,99264.0,99232.0,0.10359415]
[1738667295034,0.151116,99262.0,99255.0,0.151125]
[1738667295273,0.10238506,99261.0,99232.0,0.00320909]
[1738667295486,0.10238506,99261.0,99247.0,0.151138]
[1738667295969,0.151127,99254.0,99241.0,0.00022407]
[1738667295971,0.10238506,99261.0,99241.0,0.00022407]
[1738667296178,4e-05,99252.0,99241.0,0.00022407]
[1738667296846,4e-05,99252.0,99244.0,0.151142]
[1738667297140,4e-05,99252.0,99246.0,0.151139]
[1738667297582,4e-05,99252.0,99243.0,0.201525]
[1738667297765,4e-05,99252.0,99241.0,0.00022407]
[1738667297766,0.151134,99250.0,99241.0,0.00022407]
[1738667297976,4e-05,99252.0,99241.0,0.15137107]
[1738667298202,0.211633,99251.0,99242.0,0.151145]
[1738667298434,4e-05,99252.0,99243.0,0.151143]
[1738667298614,0.15117,99252.0,99247.0,0.002]
[1738667298826,4e-05,99252.0,99247.0,0.002]
[1738667299028,4e-05,99252.0,99244.0,0.201523]
[1738667299231,4e-05,99252.0,99246.0,0.151139]
[1738667299691,4e-05,99252.0,99244.0,0.151141]
[1738667300102,4e-05,99252.0,99247.0,0.002]
[1738667300313,4e-05,99252.0,99244.0,0.151141]
[1738667300718,0.201501,99256.0,99244.0,0.151141]
[1738667300948,0.10238506,99255.0,99246.0,0.151138]
[1738667301150,0.25351106,99255.0,99241.0,0.00022407]
[1738667301351,0.25351106,99255.0,99245.0,0.15114]
[1738667301771,0.10238506,99255.0,99249.0,0.151134]
[1738667302016,0.0001067,99267.0,99246.0,0.002]
[1738667302213,0.0001067,99267.0,99259.0,0.151118]
[1738667302214,0.10238506,99265.0,99259.0,0.151118]
[1738667302644,0.10238506,99265.0,99260.0,0.151117]
[1738667302856,0.10238506,99265.0,99258.0,0.151119]
[1738667303058,0.10238506,99265.0,99249.0,0.002]
[1738667303509,0.0001067,99267.0,99261.0,0.151115]
[1738667303954,0.0001067,99267.0,99260.0,0.201491]
[1738667304169,0.0001067,99267.0,99265.0,0.15111]
[1738667306072,0.0001067,99267.0,99265.0,0.15311]
[1738667306498,0.0001067,99267.0,99265.0,0.15111]
[1738667306711,0.0001067,99267.0,99265.0,0.15311]
[1738667306924,0.0001067,99267.0,99265.0,0.15111]
[1738667308446,0.0001067,99267.0,99265.0,0.15431884]
[1738667308648,0.0001067,99267.0,99265.0,0.15231884]
[1738667308873,0.0001067,99267.0,99265.0,0.15111]
[1738667309087,0.0001067,99267.0,99265.0,0.15311]
[1738667309296,0.0001067,99267.0,99265.0,0.15111]
[1738667309732,0.0001067,99267.0,99265.0,0.15311]
[1738667310155,0.0001067,99267.0,99265.0,0.25670369]
[1738667310367,0.0001067,99267.0,99265.0,0.40549506]
[1738667311367,0.0001067,99267.0,99265.0,0.48479506]
[1738667311542,0.0001067,99267.0,99265.0,0.53009506]
[1738667312103,0.0001067,99267.0,99265.0,0.55066701]
[1738667312269,0.0001067,99267.0,99265.0,0.54866701]
[1738667312665,5.4e-07,99267.0,99266.0,0.15]
[1738667312865,0.0002068,99300.0,99279.0,0.301089]
[1738667313064,0.0002068,99300.0,99280.0,0.15]
[1738667313422,0.00034756,99300.0,99299.0,0.151058]
[1738667313625,0.00034756,99300.0,99299.0,0.25344306]
[1738667314454,0.00034756,99300.0,99299.0,0.151058]
[1738667314663,0.00034756,99300.0,99299.0,0.25465142]
[1738667314882,0.00034756,99300.0,99299.0,0.151058]
[1738667315091,0.00034756,99300.0,99299.0,0.26463456]
[1738667315501,0.00034756,99300.0,99299.0,0.32232929]
[1738667315720,0.00034756,99300.0,99299.0,0.21994423]
[1738667315926,0.00034756,99300.0,99299.0,0.21794423]
[1738667316134,0.00034756,99300.0,99299.0,0.21994423]
[1738667316548,0.00034756,99300.0,99299.0,0.21794423]
[1738667316763,0.00034756,99300.0,99299.0,0.36190651]
[1738667316970,0.0107601,99317.0,99301.0,0.311055]
[1738667317173,0.0107601,99317.0,99316.0,0.151033]
[1738667317174,0.01122922,99317.0,99316.0,0.151033]
[1738667317381,0.01122922,99317.0,99316.0,0.25341806]
[1738667318419,0.01122922,99317.0,99316.0,0.27199001]
[1738667318666,0.01122922,99317.0,99316.0,0.27399001]
[1738667318870,0.01122922,99317.0,99316.0,0.27199001]
[1738667319083,0.01122922,99317.0,99316.0,0.27399001]
[1738667319509,0.01122922,99317.0,99316.0,0.58256887]
[1738667319720,0.01122922,99317.0,99316.0,0.55956887]
[1738667319926,0.01122922,99317.0,99316.0,0.56156887]
[1738667320133,0.01122922,99317.0,99316.0,0.56232765]
[1738667321403,0.01122922,99317.0,99316.0,0.56032765]
[1738667321822,0.01122922,99317.0,99316.0,0.59945043]
[1738667322039,0.01122922,99317.0,99316.0,0.63045043]
[1738667322253,0.01122922,99317.0,99316.0,0.62969165]
[1738667322465,0.01122922,99317.0,99316.0,0.62169165]
[1738667322668,0.01122922,99317.0,99316.0,0.62200464]
[1738667322876,0.01122922,99317.0,99316.0,0.61969165]
[1738667323086,0.01122922,99317.0,99316.0,0.62231763]
[1738667323793,0.00630142,99317.0,99316.0,0.62231763]
[1738667324022,4.2e-07,99317.0,99316.0,0.62169165]
[1738667324262,4.2e-07,99317.0,99316.0,0.63169165]
[1738667324496,4.2e-07,99317.0,99316.0,0.62169165]
[1738667324761,4.2e-07,99317.0,99316.0,0.62231763]
[1738667325167,4.2e-07,99317.0,99316.0,0.62169165]
[1738667325368,9.9e-07,99321.0,99320.0,0.334026]
[1738667325577,9.9e-07,99321.0,99320.0,0.42641106]
[1738667325785,9.9e-07,99321.0,99320.0,0.4266885]
[1738667325916,0.0001068,99360.0,99320.0,0.27538506]
[1738667325917,0.00384419,99332.0,99320.0,0.27538506]
[1738667326150,0.0001068,99360.0,99344.0,0.15099]
[1738667326389,0.0001068,99360.0,99344.0,0.40337506]
[1738667328083,0.0001068,99360.0,99344.0,0.42194701]
[1738667328494,0.0001068,99360.0,99344.0,0.42394701]
[1738667328703,0.0001068,99360.0,99344.0,0.42194701]
[1738667329150,0.0001068,99360.0,99344.0,0.42394701]
[1738667329852,0.0771,99354.0,99344.0,0.18217607]
[1738667330335,0.0085855,99345.0,99344.0,0.18217607]
[1738667331020,0.0085855,99345.0,99344.0,0.28456113]
[1738667331289,0.0085855,99345.0,99344.0,0.18217607]
[1738667332915,0.0085855,99345.0,99344.0,0.28576899]
[1738667333126,0.0085855,99345.0,99344.0,0.28456113]
[1738667333551,0.0080855,99345.0,99344.0,0.28456113]
[1738667334016,0.0080855,99345.0,99344.0,0.18217607]
[1738667334451,0.0080855,99345.0,99344.0,0.28456113]
[1738667334866,0.0080855,99345.0,99344.0,0.32139722]
[1738667335730,0.0080855,99345.0,99344.0,0.31939722]
[1738667336231,0.0080855,99345.0,99344.0,0.32139722]
[1738667336456,0.0080855,99345.0,99344.0,0.31939722]
[1738667336709,0.0080855,99345.0,99344.0,0.32139722]
[1738667336957,0.0080855,99345.0,99344.0,0.31939722]
[1738667337400,0.0080855,99345.0,99344.0,0.32139722]
[1738667337885,0.0002024,99357.0,99356.0,0.150972]
[1738667338109,0.0002024,99357.0,99356.0,0.25335706]
[1738667339237,0.0002024,99357.0,99356.0,0.26413371]
[1738667339451,0.0002024,99357.0,99356.0,0.26460283]
[1738667339843,0.0002024,99357.0,99356.0,0.28517478]
[1738667340370,0.0002024,99357.0,99356.0,0.28317478]
[1738667340612,0.0002024,99357.0,99356.0,0.28517478]
[1738667340862,0.0002024,99357.0,99356.0,0.28317478]
[1738667341528,0.0002024,99357.0,99356.0,0.17001307]
[1738667341744,0.0002024,99357.0,99356.0,0.01904107]
[1738667341967,0.1511724,99357.0,99356.0,0.01904107]
[1738667342186,0.0002024,99357.0,99356.0,0.02104107]
[1738667342400,0.00533588,99357.0,99356.0,0.17201307]
[1738667342620,0.00533588,99357.0,99356.0,0.15144112]
[1738667342831,0.0002024,99357.0,99356.0,0.15144112]
[1738667343039,0.0002024,99357.0,99356.0,0.15344112]
[1738667343737,0.0002024,99357.0,99356.0,0.00246912]
[1738667343985,0.2266724,99357.0,99356.0,0.00246912]
[1738667344206,0.0002024,99357.0,99356.0,0.15344112]
[1738667344419,0.0055599,99357.0,99356.0,0.00246912]
[1738667344629,0.0002024,99357.0,99356.0,0.15344112]
[1738667344834,0.0055599,99357.0,99356.0,0.00246912]
[1738667345048,0.0002024,99357.0,99356.0,0.00246912]
[1738667345285,0.0002024,99357.0,99356.0,0.0210047]
[1738667345499,0.0055599,99357.0,99356.0,0.0190047]
[1738667345688,0.0002024,99357.0,99356.0,0.0190047]
[1738667346143,0.1565299,99357.0,99356.0,0.0210047]
[1738667346330,0.0055599,99357.0,99356.0,0.0210047]
[1738667346966,0.0055599,99357.0,99356.0,0.0190047]
[1738667348267,0.0055599,99357.0,99356.0,0.0210047]
[1738667348696,0.0055599,99357.0,99356.0,0.0190047]
[1738667348904,0.0055599,99357.0,99356.0,0.0210047]
[1738667349344,0.0002024,99357.0,99356.0,0.0210047]
[1738667349599,0.0055599,99357.0,99356.0,0.1719767]
[1738667349802,0.0055599,99357.0,99356.0,0.0210047]
[1738667350006,0.0002024,99357.0,99356.0,0.0210047]
[1738667350222,0.02827854,99357.0,99356.0,0.0210047]
[1738667350451,0.1565299,99357.0,99356.0,0.0210047]
[1738667350659,0.0055599,99357.0,99356.0,0.0210047]
[1738667351478,0.0055599,99357.0,99356.0,0.0190047]
[1738667351711,0.0002024,99357.0,99356.0,0.0190047]
[1738667351917,0.0002024,99357.0,99356.0,0.0210047]
[1738667352120,0.0002024,99357.0,99356.0,0.0190047]
[1738667352121,0.0055599,99357.0,99356.0,0.0190047]
[1738667352514,0.0055599,99357.0,99356.0,0.00246912]
[1738667353187,0.33759475,99370.0,99356.0,0.15344112]
[1738667353400,0.01008,102550.0,99386.0,0.300926]
[1738667353401,0.08931427,99414.0,99386.0,0.300926]
[1738667353612,0.08931427,99414.0,99386.0,0.40331106]
[1738667353818,0.08931427,99402.0,99386.0,0.40331106]
[1738667355130,0.08931427,99402.0,99386.0,0.41467547]
[1738667356179,0.08931427,99402.0,99386.0,0.41667547]
[1738667356603,0.08931427,99402.0,99386.0,0.43517464]
[1738667358215,0.08973132,99420.0,99419.0,0.150876]
[1738667358415,0.08973132,99420.0,99414.0,0.150882]
[1738667358618,0.08973132,99420.0,99415.0,0.150882]
[1738667358793,0.08973132,99420.0,99404.0,0.201199]
[1738667358997,0.08973132,99420.0,99400.0,0.13632575]
[1738667359255,0.08973132,99420.0,99418.0,0.150876]
[1738667359502,0.08973132,99420.0,99415.0,0.201175]
[1738667359707,1.5,99416.0,99415.0,0.150882]
[1738667360282,1.5,99416.0,99407.0,0.201192]
[1738667360519,0.08973132,99420.0,99415.0,0.150881]
[1738667360698,0.10238506,99419.0,99400.0,0.00246912]
[1738667360925,0.08973132,99420.0,99400.0,0.15337412]
[1738667360926,1.5,99401.0,99400.0,0.15337412]
[1738667361635,1.5,99401.0,99400.0,0.15137412]
[1738667362595,1.5,99401.0,99400.0,0.002]
[1738667362811,1.5,99401.0,99398.0,0.20121]
[1738667363059,1.5,99401.0,99398.0,0.20167958]
[1738667363287,0.08973132,99420.0,99400.0,0.002]
[1738667363537,0.08973132,99420.0,99419.0,0.150876]
[1738667365569,0.08973132,99420.0,99419.0,0.152876]
[1738667366162,0.04973132,99420.0,99419.0,0.154876]
[1738667366511,0.04973132,99420.0,99419.0,0.150876]
[1738667366735,0.04973132,99420.0,99419.0,0.152876]
[1738667367363,1.54973132,99420.0,99419.0,0.152876]
[1738667367571,0.04973132,99420.0,99419.0,0.152876]
[1738667368428,0.04983792,99420.0,99419.0,0.152876]
[1738667368624,0.04983792,99420.0,99419.0,0.150876]
[1738667368922,0.04983792,99420.0,99419.0,0.152876]
[1738667371268,0.04983792,99420.0,99419.0,0.002]
[1738667371484,0.38429798,99420.0,99419.0,0.002]
[1738667372177,0.45303599,99420.0,99419.0,0.002]